Cogmind - Beta 17 @@@ ROGUE MODE // 2026.08.15 @ 00:13:54 Player: alice_fexa Result: Destroyed by G-34 Mercenary with Small Laser Performance ------------- Evolutions (0) 0 Regions Visited (4) 800 Robots Destroyed (24) 120 Value Destroyed (523) 523 Prototype IDs (23) 460 Alien Tech Used (0) 0 Bonus (399) 399 TOTAL SCORE: 2302 Bonus ------- Follower Combat Kills 99 Aligned with FarCom 300 Cogmind --------- Core Integrity 0/250 Matter 279/300 Energy 250/250 System Corruption 0% Temperature Warm (151) Movement Treading (480) Ox4 Location -9/Mines Parts ------- > --- POWER (1) -------- Ion Engine > --- PROPULSION (2) --- Light Treads Wheel > --- UTILITY (2) ------ Huge Storage Unit Targeting Computer > --- WEAPON (2) ------- Particle Gun Particle Gun > --- INVENTORY (25) --- Ion Engine Light Nuclear Core Light Nuclear Core Light Nuclear Core Light Treads Light Treads Light Treads Light Treads Wheel Wheel Heat Sink Improved Heat Sink High-capacity Storage Unit Large Matter Pod (150) Skeleton Box Tractor Beam Small Laser Small Laser Particle Gun Light Assault Rifle Light Assault Rifle Light Cannon Grenade Launcher Rocket Launcher Peak State ------------ > --- POWER ------------ Ion Engine > --- PROPULSION ------- Light Treads Wheel > --- UTILITY ---------- Huge Storage Unit Targeting Computer > --- WEAPON ----------- Particle Gun Assault Rifle > --- INVENTORY -------- Ion Engine Light Nuclear Core Light Nuclear Core Light Nuclear Core Light Treads Light Treads Light Treads Light Treads Wheel Wheel Heat Sink Improved Heat Sink High-capacity Storage Unit Large Matter Pod Skeleton Box Tractor Beam Small Laser Small Laser Particle Gun Particle Gun Light Assault Rifle Light Assault Rifle Light Cannon Grenade Launcher Rocket Launcher [Rating: 12] Favorites ----------- Power Ion Engine Engine Ion Engine Propulsion Light Treads Treads Light Treads Wheel Compact Wheel Utility Targeting Computer Storage Huge Storage Unit Processor Targeting Computer Weapon Assault Rifle Energy Gun Particle Gun Ballistic Gun Assault Rifle Build | -11 -10 -10 -10 -9 ------- Run | Yrd Mat Min Exi Min Slots Evolved . | . . . . . Power . | . . . . . Propulsion . | . . . . . Utility . | . . . . . Weapon . | . . . . . Parts Attached 20 | 6 10 3 . 1 Power 6 | 1 4 1 . . Engine 6 | 1 4 1 . . Core . | . . . . . Reactor . | . . . . . Propulsion 6 | 2 2 2 . . Treads 2 | 2 . . . . Leg . | . . . . . Wheel 4 | . 2 2 . . Hover . | . . . . . Flight . | . . . . . Utility 4 | 1 3 . . . Device . | . . . . . Storage 3 | 1 2 . . . Processor 1 | . 1 . . . Hackware . | . . . . . Protection . | . . . . . Artifact . | . . . . . Weapon 4 | 2 1 . . 1 Energy Gun 3 | 1 1 . . 1 Energy Cannon . | . . . . . Ballistic Gun 1 | 1 . . . . Ballistic Cannon . | . . . . . Launcher . | . . . . . Special Weapon . | . . . . . Impact Weapon . | . . . . . Slashing Weapon . | . . . . . Piercing Weapon . | . . . . . Special Melee Weapon . | . . . . . Unidentified Prototypes . | . . . . . Parts Lost 3 | . 2 . . 1 Power 1 | . 1 . . . Propulsion 1 | . 1 . . . Utility . | . . . . . Weapon 1 | . . . . 1 Highest Loss Streak 1 | . 1 . . 1 To Critical Strikes . | . . . . . Average Backups 19 | 3 16 22 25 25 Power 3 | 1 3 3 4 4 Propulsion 4 | 1 3 6 6 6 Utility 4 | . 3 5 5 5 Weapon 7 | . 6 8 9 9 Tool/Special . | . . . . . Unused Backups 23 | . 3 . . 20 Power 3 | . . . . 3 Propulsion 4 | . . . . 4 Utility 4 | . . . . 4 Weapon 11 | . 3 . . 8 Tool/Special 1 | . . . . 1 Average Slot Usage (%) 98 | . 96 100 100 95 Engine 13 | . 13 14 14 14 Treads 14 | . 14 14 14 9 Wheel 13 | . 13 14 14 14 Storage 14 | . 15 14 14 14 Processor 12 | . 10 14 14 14 Energy Gun 14 | . 14 14 14 18 Ballistic Gun 13 | . 14 14 14 9 Peak Build Rating 12 | 6 10 11 12 12 Average Rating 9 | 4 8 10 11 11 On Entrance 7 | . 6 10 11 12 Avg Prop Armor Cover (%) 12 | . 13 12 12 . Naked Turns . | . . . . . Heaviest Build 90 | 11 90 90 90 . Greatest Support 40 | 40 40 16 10 . Greatest Overweight (x) 8 | . 5 8 8 . Average Overweight (x) 5 | . 3 7 8 . Largest Inventory Capacity 25 | 8 25 25 25 25 Average Capacity 22 | 6 21 25 25 25 Most Carried 25 | 5 21 25 25 25 Average Carried 19 | 3 16 22 24 24 Final Capacity 25 | 8 25 25 25 25 Final Carried 25 | 5 21 25 25 24 Class Distribution -------------------- 100% | Mutant Dominant Class ---------------- Mutant | -10/Materials Mutant | -10/Mines Mutant | -10/Exiles Mutant | -9/Mines Resources | -11 -10 -10 -10 -9 ----------- Run | Yrd Mat Min Exi Min Matter Collected 753 | 263 436 54 . . Remotely . | . . . . . Salvage Created 881 | 59 737 85 . . Parts 49 | 4 40 5 . . Haulers Intercepted 2 | . 2 . . . Recyclers Shooed 5 | . 5 . . . Parts Field Recycled . | . . . . . Retrieved Matter . | . . . . . Parts Self-Destructed . | . . . . . Prevented . | . . . . . Parts Restored . | . . . . . Kills | -11 -10 -10 -10 -9 ------- Run | Yrd Mat Min Exi Min Combat Hostiles Destroyed 13 | . 12 1 . . Guns 12 | . 12 . . . Classes Destroyed 8 | 1 5 2 . . Worker 1 | . . 1 . . Tunneler 1 | . . 1 . . Hauler 2 | . 2 . . . Recycler 3 | 1 2 . . . Mechanic 1 | . 1 . . . Watcher 3 | . 3 . . . Swarmer 3 | . 3 . . . Grunt 10 | . 9 1 . . Best Kill Streak 4 | 1 4 1 . . Combat Bots Only 4 | . 4 1 . . Max Kills in Single Turn 1 | 1 1 1 . . Gunslinging . | . . . . . Exploded . | . . . . . Melee . | . . . . . Uniques/NPCs Destroyed . | . . . . . Combat | -11 -10 -10 -10 -9 -------- Run | Yrd Mat Min Exi Min Hostile Shots Fired 79 | . 60 5 . 14 Missed 16 | . 14 1 . 1 Hits 63 | . 46 4 . 13 Melee 5 | . . . . 5 Projectile 58 | . 46 4 . 8 Critical Strikes 3 | . 2 . . 1 Damage Taken 860 | . 565 44 . 251 Core 254 | . 146 12 . 96 Absorbed by Shields . | . . . . . Regen/Repaired (Parts) 122 | . 122 . . . Core Remaining (%) 100 | 100 . . . . Volleys Fired 75 | 1 62 8 . 4 Largest 2 | 2 2 2 . 2 Hottest 130 | 60 85 85 . 130 Shots Fired 147 | 2 121 16 . 8 Gun 147 | 2 121 16 . 8 Cannon . | . . . . . Launcher . | . . . . . Special . | . . . . . Kinetic 73 | 1 62 8 . 2 Thermal 74 | 1 59 8 . 6 Explosive . | . . . . . Electromagnetic . | . . . . . Robot Hit Streak 10 | 2 10 9 . 7 Robot Miss Streak 3 | . 3 2 . 1 Penetration Max . | . . . . . Secondary Targets 2 | . 1 1 . . Max Gunslinging Chain 1 | . 1 1 . . Shots Hit Robots 103 | 2 82 12 . 7 Core Hits 44 | 2 37 3 . 2 Critical Kills . | . . . . . Critical Parts Destroyed . | . . . . . Critical Strikes 2 | . 1 1 . . Burn 2 | . 1 1 . . Melee Attacks . | . . . . . Impact . | . . . . . Slashing . | . . . . . Piercing . | . . . . . Sneak Attacks . | . . . . . Combat Hostiles . | . . . . . Follow-up Attacks . | . . . . . Damage Inflicted 1348 | 25 1055 171 . 97 Guns 1348 | 25 1055 171 . 97 Cannons . | . . . . . Explosions . | . . . . . Melee . | . . . . . Ramming . | . . . . . Kinetic 644 | 13 531 77 . 23 Thermal 704 | 12 524 94 . 74 Explosive . | . . . . . Electromagnetic . | . . . . . Impact . | . . . . . Slashing . | . . . . . Piercing . | . . . . . Highest Corruption . | . . . . . Average Corruption . | . . . . . Corruption Purged . | . . . . . Corruption Blocked . | . . . . . Overload Shots . | . . . . . Overflow Damage . | . . . . . Projectiles . | . . . . . Explosions . | . . . . . Melee . | . . . . . Knockbacks . | . . . . . Impact . | . . . . . Kinetic . | . . . . . Secondary . | . . . . . Self-Inflicted Damage . | . . . . . Shots . | . . . . . Rammed . | . . . . . Targets Rammed . | . . . . . Kicked . | . . . . . Crushed . | . . . . . Highest Temperature 204 | . 204 60 . 145 Average Temperature 37 | . 40 23 . 45 Received Heat Transfer 345 | . 279 18 . 48 Siege Activations . | . . . . . Martial Activations . | . . . . . Shielding Activations . | . . . . . Robots Disrupted . | . . . . . Combat Hostiles . | . . . . . Robots Corrupted . | . . . . . Combat Hostiles . | . . . . . Parts Fried . | . . . . . Impact Corruptions . | . . . . . Robots Melted 1 | . . 1 . . Combat Hostiles 1 | . . 1 . . Parts Melted 1 | . . 1 . . Heat Transferred 1797 | 25 1291 296 . 185 Parts Sabotaged . | . . . . . Parts Stolen . | . . . . . Parts Stripped . | . . . . . Power Chain Reactions . | . . . . . Alert | -11 -10 -10 -10 -9 ------- Run | Yrd Mat Min Exi Min Maximum Alert Level . | . . . . . Low Security (%) 100 | 100 100 100 . 100 Level 1 . | . . . . . Level 2 . | . . . . . Level 3 . | . . . . . Level 4 . | . . . . . Level 5 . | . . . . . High Security . | . . . . . Max Security . | . . . . . Peak Influence 125 | 5 125 96 . . Initial . | . . . . . Average 39 | . 52 24 . . Influence Increases 624 | 5 417 202 . . Destroy 0b10 Robot/C 360 | . 240 120 . . Destroy 0b10 Robot/NC 55 | 5 40 10 . . Destroy Leader 90 | . 60 30 . . Allied During Kill 12 | . . 12 . . Successful Hack 16 | . 16 . . . Disable Machine 15 | . 15 . . . Destroy Structure 1 | . 1 . . . Lose Combat Pursuer 75 | . 45 30 . . Influence Decreases 624 | 5 417 197 5 . Entered New Map 5 | . . . 5 . Time Decay 599 | 5 397 197 . . Lost Part 20 | . 20 . . . Squads Dispatched 1 | . 1 . . . Investigation . | . . . . . Extermination . | . . . . . Reinforcement 1 | . 1 . . . Assault . | . . . . . Garrison . | . . . . . Intercept . | . . . . . Searches Triggered . | . . . . . Construction Impeded . | . . . . . Haulers Reinforced . | . . . . . Active Scanning Responses . | . . . . . Cargo Convoy Interrupts . | . . . . . Stealth | -11 -10 -10 -10 -9 --------- Run | Yrd Mat Min Exi Min Distress Signals 1 | . 1 . . . Communications Jammed . | . . . . . Distress Signals . | . . . . . Times Spotted 31 | . 25 4 . 2 Peak Tracking Total 5 | . 5 3 . 2 Tactical Retreats 3 | . 2 1 . . Traps | -11 -10 -10 -10 -9 ------- Run | Yrd Mat Min Exi Min Traps Triggered . | . . . . . Indirectly . | . . . . . Trap Hack Attempts . | . . . . . Triggered . | . . . . . Disarmed . | . . . . . Reprogrammed . | . . . . . Reused . | . . . . . Traps Extracted . | . . . . . Installed . | . . . . . Triggered . | . . . . . Machines | -11 -10 -10 -10 -9 ---------- Run | Yrd Mat Min Exi Min Machines Disabled 1 | . 1 . . . Max in Single Turn 1 | . 1 . . . Machines Repaired . | . . . . . Machines Dismantled . | . . . . . Machines Sabotaged . | . . . . . Overloaded Fab Kills . | . . . . . Hacking | -11 -10 -10 -10 -9 --------- Run | Yrd Mat Min Exi Min Machines Accessed 9 | . 7 . 2 . Terminals 5 | . 5 . . . Fabricators . | . . . . . Repair Stations 1 | . 1 . . . Recycling Units 1 | . 1 . . . Scanalyzers . | . . . . . Garrison Access . | . . . . . Total Hacks 18 | . 16 . 2 . Successful 12 | . 10 . 2 . Failed 6 | . 6 . . . Catastrophic . | . . . . . Database Lockouts . | . . . . . Manual 12 | . 11 . 1 . Terminals 12 | . 12 . . . Fabricators . | . . . . . Repair Stations 2 | . 2 . . . Recycling Units 2 | . 2 . . . Scanalyzers . | . . . . . Garrison Access . | . . . . . Terminal Hacks 4 | . 2 . 2 . Record 1 | . . . 1 . Locate Traps 2 | . 2 . . . Proto ID Catalog 1 | . . . 1 . Fabricator Hacks . | . . . . . Repair Station Hacks 2 | . 2 . . . Scan Component 1 | . 1 . . . Repair 1 | . 1 . . . Recycling Unit Hacks 1 | . 1 . . . Retrieve Components 1 | . 1 . . . Scanalyzer . | . . . . . Garrison Access Hacks . | . . . . . Unauthorized Hacks 5 | . 5 . . . Terminals 5 | . 5 . . . Skim 5 | . 5 . . . Fabricators . | . . . . . Repair Stations . | . . . . . Recycling Units . | . . . . . Scanalyzers . | . . . . . Garrison Access . | . . . . . Data Cores Recovered . | . . . . . Used . | . . . . . Hacking Detections 2 | . 2 . . . Full Trace Events . | . . . . . Feedback Events . | . . . . . Feedback Blocked . | . . . . . Robot Schematics Acquired . | . . . . . Robots Built . | . . . . . Authchips . | . . . . . Time . | . . . . . Total Robot Build Rating . | . . . . . Part Schematics Acquired . | . . . . . Parts Built . | . . . . . Authchips . | . . . . . Time . | . . . . . Total Part Build Rating . | . . . . . Part Studies Acquired . | . . . . . Parts Repaired 1 | . 1 . . . Time 26 | . 26 . . . Parts Recycled . | . . . . . Recycled Matter . | . . . . . Retrieved Matter . | . . . . . Retrieved Components . | . . . . . Parts Scanalyzed . | . . . . . Part Schematics Acquired . | . . . . . Parts Damaged . | . . . . . Bothacking | -11 -10 -10 -10 -9 ------------ Run | Yrd Mat Min Exi Min Used RIF Installer . | . . . . . Robots Hacked . | . . . . . Non-combat . | . . . . . Combat . | . . . . . Robot Hacks Applied . | . . . . . Relay Couplers Released . | . . . . . Fabnet Peak Effective % . | . . . . . Robots Rewired . | . . . . . Allies Hacked . | . . . . . Hacks Repelled . | . . . . . Allies | -11 -10 -10 -10 -9 -------- Run | Yrd Mat Min Exi Min Total Allies 2 | . . 2 . . Largest Group 2 | . . 2 1 . Highest-Rated Group 45 | . . 45 31 . Highest-Rated Ally 31 | . . 31 31 . Total Orders . | . . . . . Ally Attacks 20 | . . 20 . . Total Damage 296 | . . 296 . . Kills 5 | . . 5 . . Allies Corrupted . | . . . . . Allies Melted . | . . . . . Intel | -11 -10 -10 -10 -9 ------- Run | Yrd Mat Min Exi Min Active Infowar (turns) . | . . . . . Robot Analysis Total . | . . . . . Derelict Logs Recovered 2 | . . 2 . . Drone Launches . | . . . . . Drone Recoveries . | . . . . . Exploration | -11 -10 -10 -10 -9 ------------- Run | Yrd Mat Min Exi Min Turns Passed 2591 | 91 1274 788 424 14 Spaces Moved 1218 | 50 589 367 212 . Core 5 | 5 . . . . Treads 73 | 45 28 . . . Legs . | . . . . . Wheels 1140 | . 561 367 212 . Hover . | . . . . . Flight . | . . . . . Fastest Speed 50 | 50 130 175 200 . Average Speed 173 | 149 150 199 200 . Slowest Speed 200 | 160 175 200 200 . Overloaded Moves . | . . . . . Propulsion Burnouts . | . . . . . Robots Hopped . | . . . . . Potential Cave-ins . | . . . . . Cave-ins Triggered . | . . . . . Exploration Rate (%) 45 | 4 78 81 61 3 Regions Visited 4 Branch Regions 3 Pre-discovered Areas 4 | . . 3 1 . Known Exits Taken 1 | . 1 . . . Unknown Exits Taken 3 | 1 . 1 1 . Scrap Searched 2 | . . 2 . . Spaces Dug . | . . . . . Terrain Destroyed . | . . . . . Melee . | . . . . . Projectile . | . . . . . AOE . | . . . . . Terrain Rammed . | . . . . . Walls Destroyed . | . . . . . Machines Disabled . | . . . . . Actions | -11 -10 -10 -10 -9 --------- Run | Yrd Mat Min Exi Min Total 1549 | 62 861 407 213 6 Wait 188 | 1 160 27 . . Move 1214 | 49 588 366 211 . Hop . | . . . . . Pick Up 34 | 5 26 2 1 . Fast Attach 10 | 6 3 . . 1 Attach 4 | . 3 . . 1 Detach 2 | . 2 . . . Swap 8 | . 5 3 . . Drop 14 | . 12 1 1 . Fire 75 | 1 62 8 . 4 Melee . | . . . . . Ram . | . . . . . Kick . | . . . . . Crush . | . . . . . Escape Stasis . | . . . . . Rewire . | . . . . . Trap . | . . . . . Miscellaneous . | . . . . . Route ------- -11/Scrapyard -10/Materials (discovered 5 exits: *Mat x3 / *Min / Sub) -10/Mines (discovered 2 exits: *Mat / *Exi) -10/Exiles -9/Mines History --------- Turn | Location | Event 9 | -11/Scrapyard | Discovered new exit (range 15) 92 | -11/Scrapyard | Entered Materials 303 | -10/Materials | Build established: Mutant 433 | -10/Materials | Discovered new exit (range 10) 644 | -10/Materials | Core integrity fell below 50% 707 | -10/Materials | Repaired Lgt. Treads 835 | -10/Materials | Discovered new exit (range 9) 1084 | -10/Materials | Discovered new exit (range 9) 1239 | -10/Materials | Learned location of 1 exit from Recycling 1275 | -10/Materials | Identified exit to Subcaves 1302 | -10/Materials | Learned Storage stockpile data 1318 | -10/Materials | Learned Storage stockpile data 1322 | -10/Materials | Identified exit to Materials 1323 | -10/Materials | Learned location of 1 exit from Recycling 1324 | -10/Materials | Identified exit to Mines 1331 | -10/Materials | Learned 2 Materials zone layouts 1366 | -10/Materials | Entered Mines 1434 | -10/Mines | Learned location of Storage (-7) 1439 | -10/Mines | Discovered exit to Materials (range 5) 1542 | -10/Mines | Found a Scrap Suit stashed away for nefarious purposes 1846 | -10/Mines | Received a Rocket Launcher from a helpful Derelict 2144 | -10/Mines | Deemed a non-threat by the Exiles lab entrance 2146 | -10/Mines | Discovered new exit (range 5) 2154 | -10/Mines | Entered Exiles 2154 | -10/Exiles | Accompanied by 1 ally 2184 | -10/Exiles | Led the pair of lost Derelicts to a safe place 2204 | -10/Exiles | Met 8R-AWN 2236 | -10/Exiles | Met EX-HEX 2294 | -10/Exiles | Met EX-BIN 2318 | -10/Exiles | Aligned with FarCom system 2320 | -10/Exiles | Given EX-Vault access code 2368 | -10/Exiles | Opened EX-Vault 2383 | -10/Exiles | Found Skeleton Box 2426 | -10/Exiles | Warned to stay clear of 0b10 Research branches 2486 | -10/Exiles | Met EX-DEC 2494 | -10/Exiles | Learned location of Zion (-6) 2562 | -10/Exiles | Discovered new exit (range 10) 2578 | -10/Exiles | Left Exiles lab with Skeleton Box 2578 | -10/Exiles | Entered Mines 2584 | -9/Mines | Core integrity fell below 20% 2592 | -9/Mines | Destroyed by G-34 Mercenary with Small Laser Last Messages --------------- network. EX-BIN: And don't even think about spreading that code around. We're gonna change it right after you leave. Most certainly not to something like 1234 which I did last time as a little joke and some thief managed to sneak in here and steal a few of HEX's prototypes. EX-DEC: Ah I see we have a visitor. One wrong move in here and I'll invert your atomic chain! 02488_ EX-DEC: "Oops, I hope HEX didn't hear that..." 02494_ Connecting with EX-Message Board... >>Record "MSG001714-01*" PINNED - TO ALL TESTERS: Stay away from Zion. Imprinter means us harm and is serious about it. World map updated: -6/Zion. 02562_ EXIT=FOUND LOCATION=UNKNOWN GOAL=ESCAPE 02578_ Receiving FarCom transmissions... 02579_ Lgt. Treads severed. 02581_ Acquired Lgt. Treads. 02583_ Assault Rifle destroyed. Map ----- +----------------------------------------------------+ | | | | | | | | | | | | | | | | | | | | | ?????????????????????????????????????????????????? | | ?????????????????????????????????????????????????? | | ?????????????????????????????????????????????????? | | ?????????????????????????????????????????????????? | | ?????????????????????????????????????????????????? | | ?????????????????????????????????????????????????? | | ?????????????????????????????????????????????????? | | ?????????????????????????????????????????????????? | | ?????????????????????????????????????????????????? | | ?????????????????????????????????????????????????? | | ?????????????????????????????????????????????????? | | ?????????????????????????????????????????????????? | | ??????????????????????????###????????????????????? | | ????????????????????????## ##???????????????????? | | ???????????????????????## ##??????????????????? | | ???????????????????????# @ #??????????????????? | | ???????????????????????# gl #??????????????????? | | ???????????????????????# #?????????????????? | | ???????????????????????# ???????????????? | | ???????????????????????## ####r ?????????????? | | ????????????????????????### ##????? #???????????? | | ???????????????????????????# #???????????????????? | | ???????????????????????????? #???????????????????? | | ???????????????????????????? #???????????????????? | | ?????????????????????????????#???????????????????? | | ?????????????????????????????????????????????????? | | ?????????????????????????????????????????????????? | | ?????????????????????????????????????????????????? | | ?????????????????????????????????????????????????? | | ?????????????????????????????????????????????????? | | ?????????????????????????????????????????????????? | | ?????????????????????????????????????????????????? | | ?????????????????????????????????????????????????? | | ?????????????????????????????????????????????????? | | ?????????????????????????????????????????????????? | | ?????????????????????????????????????????????????? | | ?????????????????????????????????????????????????? | | ?????????????????????????????????????????????????? | | ?????????????????????????????????????????????????? | | ?????????????????????????????????????????????????? | +----------------------------------------------------+ Best States ------------- Heat Dissipation 25 Energy Generation 10 Energy Capacity 250 Matter Stores 300 Matter Capacity 300 Sight Range 16 Terrain Scan Density 10 Evasion (%) 40 Targeting Accuracy 5 Recoil Reduction 2 Item Schematics ----------------- None Robot Schematics ------------------ None Fabricated ------------ Nothing Repaired ---------- Lgt. Treads | 12% | -10/Materials Studied --------- None Alien Tech Used ----------------- None Achievements -------------- None Challenges ------------ None Game ------ Seed MetafieldSuperdenseArray Manual? 0 Play Time 00:08:37 Cumulative 1722.9 hours Start 2026.08.15 @ 00:05:19 End 2026.08.15 @ 00:13:54 Sessions 1 Manual Loads 0 Difficulty Rogue Special Mode None Game No. 1239 Rogue 1199 Adventurer 40 Explorer 0 Win Type - Total 227 Types 107/12/76/3/2/4/16/2/1/4 Lore% 98 Gallery% 98 Achievement% 92 Wizard Run 0 Options --------- Layout 0 ASCII 0 Keyboard 0 Movement Numpad Keybinds 0 Fullscreen 0 Font 20/Terminus Map View 76x50 Zoom Use 0% Tactical HUD 1 Map Filters NONE Filters NONE Steam 1 RUN: 241419d7-3688-4e23-8a3c-654a4d781772